fUST/lending_fUST_20250604
["ID","MTS","AMOUNT","RATE_DAILY","PERIOD"]
[364169710,1749027034392,-520.39,0.00020442,2]
[364169711,1749027034402,-440.0,0.00020442,2]
[364169712,1749027034412,-759.43,0.00020442,2]
[364169713,1749027034423,-512.73,0.00020442,2]
[364169714,1749027034433,-693.84,0.00020442,2]
[364169715,1749027034442,-440.0,0.00020443,2]
[364169716,1749027034452,-440.0,0.00020443,2]
[364169717,1749027034462,-5228.49,0.00020443,2]
[364169718,1749027034471,-164.88,0.00020443,2]
[364169719,1749027034489,-440.0,0.00020443,2]
[364169720,1749027034502,-440.0,0.00020443,2]
[364169721,1749027034513,-440.0,0.00020443,2]
[364169722,1749027034523,-440.0,0.00020443,2]
[364169723,1749027034535,-500.0,0.00020485,2]
[364169724,1749027034545,-440.0,0.00020538,2]
[364169725,1749027034555,-440.0,0.00020538,2]
[364169726,1749027034567,-793.21,0.00020538,2]
[364169727,1749027034577,-440.0,0.00020538,2]
[364169728,1749027034587,-207.4,0.00020639,2]
[364169729,1749027034600,-5000.0,0.00020639,2]
[364169730,1749027034609,-845.84,0.00020702,3]
[364169731,1749027034619,-1801.6540761,0.00020712,3]
[364169732,1749027034629,-23739.68588621,0.00020712,2]
[364169733,1749027034640,-158.575084,0.00020712,2]
[364169734,1749027034654,-1145.4394388,0.00020712,2]
[364169735,1749027034664,-306.0,0.00020712,2]
[364169736,1749027034674,-176.6037853,0.00020712,2]
[364169737,1749027034686,-158.575084,0.00020712,2]
[364169738,1749027034695,-572.7197194,0.00020712,2]
[364169739,1749027034705,-176.6037853,0.00020712,2]
[364169740,1749027034715,-158.575084,0.00020712,2]
[364169741,1749027034726,-572.7197194,0.00020712,2]
[364169742,1749027034738,-158.575084,0.00020712,2]
[364169743,1749027034747,-572.7197194,0.00020712,2]
[364169744,1749027034757,-176.6037853,0.00020712,2]
[364169745,1749027034767,-176.6037853,0.00020712,2]
[364169746,1749027034776,-572.7197194,0.00020712,2]
[364169747,1749027034785,-174.9186787,0.00020712,2]
[364169748,1749027034795,-376.7795901,0.00020712,2]
[364169749,1749027034805,-508.68,0.00020716,2]
[364169750,1749027034814,-759.43,0.00020716,2]
[364169751,1749027034823,-512.73,0.00020716,2]
[364169752,1749027034832,-693.84,0.00020716,2]
[364169753,1749027034841,-346.68,0.00020717,2]
[364169754,1749027034848,-440.0,0.00020717,2]
[364169755,1749027034857,-5228.49,0.00020717,2]
[364169756,1749027034864,-440.0,0.00020717,2]
[364169757,1749027034871,-440.0,0.00020717,2]
[364169758,1749027034880,-440.0,0.00020717,2]
[364169759,1749027034888,-440.0,0.00020717,2]
[364169760,1749027034896,-440.0,0.00020812,2]
[364169761,1749027034906,-440.0,0.00020812,2]
[364169762,1749027034917,-793.21,0.00020812,2]
[364169763,1749027034928,-440.0,0.00020812,2]
[364169764,1749027034938,-377.5857257,0.000209,4]
[364169765,1749027034949,-165.534526,0.00020951,2]
[364169766,1749027034959,-759.43,0.0002099,2]
[364169767,1749027034970,-512.73,0.0002099,2]
[364169768,1749027034981,-693.84,0.0002099,2]
[364169769,1749027034992,-440.0,0.00020991,2]
[364169770,1749027035003,-5228.49,0.00020991,2]
[364169771,1749027035014,-440.0,0.00020991,2]
[364169773,1749027035024,-440.0,0.00020991,2]
[364169774,1749027035034,-440.0,0.00020991,2]
[364169775,1749027035044,-440.0,0.00020991,2]
[364169776,1749027035054,-1000.0,0.00021033,2]
[364169777,1749027035065,-377.58572546,0.00021038,4]
[364169778,1749027035075,-440.0,0.00021086,2]
[364169779,1749027035085,-440.0,0.00021086,2]
[364169780,1749027035095,-793.21,0.00021086,2]
[364169781,1749027035105,-440.0,0.00021086,2]
[364169782,1749027035116,-420.0,0.00021113,2]
[364169783,1749027035126,-500.0,0.00021123,2]
[364169784,1749027035136,-756.30311,0.00021149,3]
[364169785,1749027035146,-500.0,0.00021164,2]
[364169786,1749027035156,-377.58572546,0.00021176,4]
[364169787,1749027035167,-1041.0,0.000212,2]
[364169788,1749027035177,-1041.0,0.000212,2]
[364169789,1749027035187,-1041.0,0.000212,2]
[364169790,1749027035197,-1041.0,0.000212,2]
[364169791,1749027035207,-1041.0,0.000212,2]
[364169792,1749027035216,-1041.0,0.000212,2]
[364169793,1749027035227,-1041.0,0.000212,2]
[364169794,1749027035240,-1041.0,0.000212,2]
[364169795,1749027035249,-1041.0,0.000212,2]
[364169796,1749027035259,-1041.0,0.000212,2]
[364169797,1749027035269,-759.43,0.00021264,2]
[364169798,1749027035278,-512.73,0.00021264,2]
[364169799,1749027035288,-693.84,0.00021264,2]
[364169800,1749027035298,-440.0,0.00021265,2]
[364169801,1749027035308,-5228.49,0.00021265,2]
[364169802,1749027035318,-444.52,0.00021265,2]
[364169803,1749027035328,-440.0,0.00021265,2]
[364169804,1749027035338,-516.78,0.00021265,2]
[364169805,1749027035348,-440.0,0.00021265,2]
[364169806,1749027035358,-377.58572546,0.00021314,5]
[364169807,1749027035368,-2226.91980256,0.00021352,2]
[364169808,1749027035378,-440.0,0.0002136,2]
[364169809,1749027035388,-440.0,0.0002136,2]
[364169810,1749027035398,-793.21,0.0002136,2]
[364169811,1749027035407,-440.0,0.0002136,2]
[364169812,1749027035417,-3000.0,0.00021376,2]
[364169813,1749027035427,-6000.0,0.00021388,2]
[364169814,1749027035437,-377.58572546,0.00021452,5]
[364169815,1749027035446,-6000.0,0.00021482,2]
[364169816,1749027035456,-191.0,0.000215,7]
[364169817,1749027035466,-406944.88442,0.00021538,2]
[364169818,1749027035476,-759.43,0.00021538,2]
[364169819,1749027035487,-512.73,0.00021538,2]
[364169820,1749027035497,-693.84,0.00021538,2]
[364169821,1749027035507,-440.0,0.00021539,2]
[364169822,1749027035518,-5228.49,0.00021539,2]
[364169823,1749027035528,-440.0,0.00021539,2]
[364169824,1749027035538,-160.46,0.00021539,2]
[364169825,1749027035548,-377.58572546,0.0002159,5]
[364169826,1749027035558,-151.0,0.000216,3]
[364169827,1749027035568,-6000.0,0.00021624,3]
[364169828,1749027035578,-314.98208564,0.00021624,3]
[364169829,1749027035587,-212.90465545,0.00021624,3]
[364169830,1749027035598,-6000.0,0.00021628,2]
[364169831,1749027035608,-962.0,0.00021628,2]
[364169832,1749027035618,-2226.0,0.00021628,2]
[364169833,1749027035628,-709.0,0.00021628,2]
[364169834,1749027035641,-405.0,0.00021628,2]
[364169835,1749027035651,-440.0,0.00021634,2]
[364169836,1749027035661,-440.0,0.00021634,2]
[364169837,1749027035671,-793.21,0.00021634,2]
[364169838,1749027035683,-544.8,0.00021634,2]
[364169839,1749027035692,-1292.02971109,0.00021642,2]
[364169871,1749027038652,-1254.62252141,0.00019438,2]
[364169872,1749027038662,-422.92,0.00021528,3]
[364169873,1749027038672,-803.82627679,0.00021538,2]
[364169874,1749027038683,-500.0,0.00021538,2]
[364169875,1749027038692,-803.82627679,0.00021538,2]
[364169876,1749027038701,-273.17328295,0.00021538,2]
[364169877,1749027038714,-226.82671705,0.00021538,2]
[364169878,1749027038725,-251.48769771,0.00021538,2]
[364169879,1749027038738,-543.73900073,0.00021538,2]
[364169928,1749027040763,-836.41501427,0.00019438,2]
[364169930,1749027040773,-8.59957835,0.00021538,2]
[364169932,1749027040784,-163.36604243,0.00021538,2]
[364169934,1749027040793,-803.82627679,0.00021538,2]
[364169936,1749027040803,-803.82627679,0.00021538,2]
[364169938,1749027040813,-803.82627679,0.00021538,2]
[364169940,1749027040822,-803.82627679,0.00021538,2]
[364169942,1749027040832,-500.0,0.00021538,2]
[364169944,1749027040841,-803.82627679,0.00021538,2]
[364169946,1749027040851,-803.82627679,0.00021538,2]
[364169948,1749027040860,-500.0,0.00021538,2]
[364169950,1749027040870,-500.0,0.00021538,2]
[364169952,1749027040879,-500.0,0.00021538,2]
[364169954,1749027040888,-803.82627679,0.00021538,2]
[364169956,1749027040898,-803.82627679,0.00021538,2]
[364169958,1749027040908,-803.82627679,0.00021538,2]
[364169960,1749027040918,-500.0,0.00021538,2]
[364169962,1749027040928,-500.0,0.00021538,2]
[364169964,1749027040937,-803.82627679,0.00021538,2]
[364169966,1749027040947,-803.82627679,0.00021538,2]
[364169969,1749027040957,-500.0,0.00021538,2]
[364169971,1749027040966,-803.82627679,0.00021538,2]
[364169973,1749027040975,-803.82627679,0.00021538,2]
[364169975,1749027040986,-803.82627679,0.00021538,2]
[364169977,1749027040996,-500.0,0.00021538,2]
[364169979,1749027041005,-800.41594111,0.00021538,2]
[364169981,1749027041022,-3.41033568,0.00021538,2]
[364169983,1749027041031,-500.0,0.00021538,2]
[364169985,1749027041041,-803.82627679,0.00021538,2]
[364169987,1749027041050,-803.82627679,0.00021538,2]
[364169989,1749027041060,-803.82627679,0.00021538,2]
[364169991,1749027041069,-803.82627679,0.00021538,2]
[364169993,1749027041078,-803.82627679,0.00021538,2]
[364169995,1749027041088,-803.82627679,0.00021538,2]
[364169998,1749027041101,-4707.97028891,0.00021642,2]
[364169999,1749027041111,-511.49,0.0002167,3]
[364170002,1749027041121,-227.01001877,0.0002168,2]
[364170004,1749027041131,-593.18,0.000217,2]
[364170006,1749027041140,-377.58572546,0.00021728,5]
[364170008,1749027041150,-2226.91980255,0.00021731,2]
[364170010,1749027041159,-151.0,0.000218,4]
[364170012,1749027041168,-759.43,0.00021812,2]
[364170014,1749027041178,-512.73,0.00021812,2]
[364170016,1749027041187,-693.84,0.00021812,2]
[364170018,1749027041196,-2175.68686955,0.00021813,2]
[364170020,1749027041208,-3052.80313045,0.00021813,2]
[364170022,1749027041218,-300.16,0.00021813,2]
[364170024,1749027041227,-377.58572546,0.00021866,6]
[364170026,1749027041237,-88.67986576,0.00021908,2]
[364170259,1749027043646,-351.32013424,0.00021908,2]
[364170261,1749027043657,-339.30722702,0.00021908,2]
[364170409,1749027046830,-100.69277298,0.00021908,2]
[364170410,1749027046840,-151.0,0.00021912,2]
[364170411,1749027046849,-72304.69,0.0002198,7]
[364170412,1749027046860,-157.36197509,0.00021981,2]
[364170413,1749027046869,-405.25949644,0.00021999,2]
[364170414,1749027046879,-3000.0,0.00022,2]
[364170415,1749027046889,-154.679352,0.00022,7]
[364170416,1749027046898,-238.32865366,0.00022,2]
[364170417,1749027046907,-151.0,0.00022,8]
[364170418,1749027046916,-377.58572546,0.00022003,6]
[364170419,1749027046926,-215.0738,0.00022008,2]
[364170420,1749027046935,-3000.0,0.0002201,2]
[364170421,1749027046945,-3000.0,0.0002202,2]
[364170423,1749027046954,-3000.0,0.0002203,2]
[364170425,1749027046963,-3000.0,0.0002204,2]
[364170427,1749027046972,-3000.0,0.0002205,2]
[364170429,1749027046982,-3000.0,0.0002206,2]
[364170431,1749027046991,-223.49,0.00022062,10]
[364170433,1749027047001,-3000.0,0.0002207,2]
[364170435,1749027047010,-1691.68,0.00022072,3]
[364170437,1749027047019,-3000.0,0.0002208,2]
[364170439,1749027047029,-759.43,0.00022086,2]
[364170441,1749027047038,-512.73,0.00022086,2]
[364170443,1749027047047,-693.84,0.00022086,2]
[364170445,1749027047056,-5228.49,0.00022087,2]
[364170447,1749027047065,-3000.0,0.0002209,2]
[364170449,1749027047075,-3000.0,0.000221,2]
[364170451,1749027047084,-3000.0,0.0002211,2]
[364170453,1749027047093,-2226.91980255,0.0002211,2]
[364170455,1749027047103,-3000.0,0.0002212,2]
[364170457,1749027047112,-1563.0,0.00022125,2]
[364170459,1749027047122,-3000.0,0.0002213,2]
[364170461,1749027047131,-3290.456033,0.0002214,2]
[364170463,1749027047141,-377.58572546,0.00022141,6]
[364170465,1749027047150,-2000.0,0.00022164,2]
[364170467,1749027047161,-2000.0,0.00022164,2]
[364170469,1749027047170,-2000.0,0.00022164,2]
[364170471,1749027047179,-2000.0,0.00022164,2]
[364170473,1749027047189,-2000.0,0.00022164,2]
[364170475,1749027047198,-2000.0,0.00022164,2]
[364170477,1749027047209,-2000.0,0.00022164,2]
[364170479,1749027047219,-2000.0,0.00022164,2]
[364170482,1749027047229,-2000.0,0.00022164,2]
[364170484,1749027047239,-2000.0,0.00022164,2]
[364170486,1749027047249,-2000.0,0.00022164,2]
[364170488,1749027047258,-2000.0,0.00022164,2]
[364170490,1749027047269,-2000.0,0.00022164,2]
[364170492,1749027047278,-536.46476925,0.00022164,2]
[364170494,1749027047288,-440.0,0.00022182,2]
[364170496,1749027047298,-440.0,0.00022182,2]
[364170498,1749027047307,-160.0,0.00022199,2]
[364170500,1749027047317,-1202.29,0.000222,7]
[364170502,1749027047327,-175708.65,0.000222,7]
[364170504,1749027047336,-500.0,0.0002226,2]
[364170506,1749027047346,-377.58572546,0.00022279,6]
[364170508,1749027047355,-151.0,0.000223,7]
[364170510,1749027047365,-759.43,0.0002236,2]
[364170512,1749027047374,-512.73,0.0002236,2]
[364170514,1749027047384,-693.84,0.0002236,2]
[364170516,1749027047393,-5228.49,0.00022361,2]
[364170518,1749027047402,-156.305,0.00022413,2]
[364170520,1749027047413,-377.58572546,0.00022417,7]
[364170522,1749027047422,-440.0,0.00022456,2]
[364170524,1749027047432,-440.0,0.00022456,2]
[364170526,1749027047441,-2226.91980255,0.00022489,2]
[364170528,1749027047450,-154.6227015,0.00022493,2]
[364170530,1749027047459,-151.0,0.000225,6]
[364170532,1749027047469,-151.0,0.000225,8]
[364170534,1749027047479,-377.58572546,0.00022555,7]
[364170536,1749027047489,-151.0,0.000226,5]
[364170538,1749027047500,-759.43,0.00022634,2]
[364170540,1749027047510,-512.73,0.00022634,2]
[364170542,1749027047520,-693.84,0.00022634,2]
[364170544,1749027047530,-5228.49,0.00022635,2]
[364170546,1749027047539,-501.65090906,0.00022673,2]
[364170548,1749027047547,-500.86418966,0.00022673,2]
[364170550,1749027047556,-562.1613533,0.00022673,2]
[364170552,1749027047565,-500.0,0.00022673,2]
[364170554,1749027047575,-500.8346626,0.00022673,2]
[364170556,1749027047584,-500.0,0.00022673,2]
[364170558,1749027047593,-502.68565234,0.00022673,2]
[364170560,1749027047602,-377.58572546,0.00022693,7]
[364170562,1749027047610,-160.0,0.00022699,2]
[364170564,1749027047619,-3983.34683703,0.000227,2]
[364171005,1749027054113,154.19,0.00024,31]
[364171006,1749027054168,154.19,0.00024,31]
[364171007,1749027054227,154.19,0.00024,31]
[364171008,1749027054288,154.19,0.00024,31]
[364171009,1749027054363,154.19,0.00024,31]
[364171010,1749027090800,200.0,0.00024858,120]
[364171014,1749027210761,200.0,0.00024227,120]
[364171034,1749027528529,165.41606,0.00013699,2]
[364171036,1749027570885,200.0,0.00024216,120]
[364171085,1749028097079,5360.02806415,0.00025,30]
[364171763,1749028243764,-440.0,0.00019893,2]
[364171765,1749028243774,-440.0,0.00019893,2]
[364171767,1749028243783,-440.0,0.00019893,2]
[364171769,1749028243792,-230.07704568,0.00019893,2]
[364171771,1749028243802,-440.0,0.00019893,2]
[364171773,1749028243812,-86.99632407,0.00019893,2]
[364171777,1749028243845,-204.33825629,0.00019893,2]
[364171779,1749028243855,-440.0,0.00019895,2]
[364171781,1749028243865,-2832.1,0.00019895,2]
[364171784,1749028243874,-430.0,0.00019895,2]
[364171787,1749028243884,-440.0,0.00019895,2]
[364171789,1749028243893,-440.0,0.00019895,2]
[364171791,1749028243902,-440.0,0.00019895,2]
[364171793,1749028243912,-42.06174371,0.00019961,2]
[364172771,1749028254264,194.0,0.00025,120]
[364175216,1749028336286,155.280209,0.00023716,30]
[364175224,1749028637135,302.5,0.000237,30]
[364175227,1749028891609,165.492897,0.00013699,2]
[364175303,1749029432034,-156.20468178,0.00018899,2]
[364175329,1749029432547,-187.44561814,0.00019295,2]
[364175330,1749029432558,-168.19204084,0.00019695,2]
[364175331,1749029432567,-165.021,0.00019795,2]
[364175332,1749029432576,-250.0,0.00019815,2]
[364175333,1749029432587,-300.0,0.00019892,2]
[364175334,1749029432596,-440.0,0.00019892,2]
[364175335,1749029432607,-1200.0,0.00019892,2]
[364175336,1749029432617,-440.0,0.00019892,2]
[364175337,1749029432626,-797.14,0.00019892,2]
[364175338,1749029432635,-440.0,0.00019892,2]
[364175339,1749029432646,-324.20011254,0.00019892,2]
[364175340,1749029432655,-440.0,0.00019892,2]
[364175341,1749029432665,-900.82703805,0.00019892,3]
[364175342,1749029432674,-11869.84294311,0.00019893,2]
[364175343,1749029432685,-440.0,0.00019893,2]
[364175344,1749029432694,-394.98746746,0.00019893,2]
[364175345,1749029432704,-597.85320696,0.00019893,2]
[364175346,1749029432714,-500.0,0.00019893,2]
[364175347,1749029432724,-500.0,0.00019893,2]
[364175348,1749029432734,-500.0,0.00019893,2]
[364175349,1749029432744,-500.0,0.00019893,2]
[364175350,1749029432755,-500.0,0.00019893,2]
[364175351,1749029432765,-236.06340906,0.00019893,2]
[364175352,1749029432775,-500.0,0.00019893,2]
[364175353,1749029432785,-500.0,0.00019893,2]
[364175354,1749029432795,-483.55555157,0.00019893,2]
[364175355,1749029432806,-500.0,0.00019893,2]
[364175356,1749029432815,-348.05854298,0.00019893,2]
[364175357,1749029432825,-500.0,0.00019893,2]
[364175358,1749029432835,-430.0,0.00019893,2]
[364175359,1749029432845,-440.0,0.00019893,2]
[364175360,1749029432856,-500.0,0.00019893,2]
[364175361,1749029432866,-440.0,0.00019893,2]
[364175362,1749029432876,-440.0,0.00019893,2]
[364175363,1749029432885,-440.0,0.00019893,2]
[364175364,1749029432895,-440.0,0.00019893,2]
[364175365,1749029432905,-440.0,0.00019893,2]
[364175366,1749029432915,-440.0,0.00019893,2]
[364175367,1749029432924,-440.0,0.00019893,2]
[364175368,1749029432934,-440.0,0.00019893,2]
[364175369,1749029432944,-440.0,0.00019893,2]
[364175370,1749029432953,-440.0,0.00019893,2]
[364175371,1749029432963,-440.0,0.00019893,2]
[364175372,1749029432972,-440.0,0.00019893,2]
[364175373,1749029432982,-440.0,0.00019893,2]
[364175374,1749029432991,-440.0,0.00019893,2]
[364175375,1749029433001,-970.15,0.00019893,2]
[364175376,1749029433011,-440.0,0.00019893,2]
[364175377,1749029433020,-440.0,0.00019893,2]
[364175378,1749029433030,-511.29093872,0.00019893,2]
[364175379,1749029433040,-440.0,0.00019893,2]
[364175380,1749029433051,-440.0,0.00019893,2]
[364175381,1749029433061,-440.0,0.00019893,2]
[364175382,1749029433071,-440.0,0.00019893,2]
[364175383,1749029433082,-472.60810396,0.00019893,2]
[364175384,1749029433092,-440.0,0.00019893,2]
[364175385,1749029433102,-430.0,0.00019893,2]
[364175386,1749029433113,-440.0,0.00019893,2]
[364175387,1749029433123,-440.0,0.00019893,2]
[364175388,1749029433140,-440.0,0.00019893,2]
[364175389,1749029433156,-440.0,0.00019893,2]
[364175390,1749029433167,-440.0,0.00019893,2]
[364175391,1749029433178,-440.0,0.00019893,2]
[364175392,1749029433189,-612.71,0.00019893,2]
[364175393,1749029433201,-430.0,0.00019894,2]
[364175394,1749029433212,-430.0,0.00019894,2]
[364175395,1749029433223,-430.0,0.00019894,2]
[364175396,1749029433233,-377.39182041,0.00019894,2]
[364175397,1749029433243,-430.0,0.00019894,2]
[364175398,1749029433254,-440.0,0.00019894,2]
[364175399,1749029433264,-440.0,0.00019894,2]
[364175400,1749029433274,-440.0,0.00019894,2]
[364175401,1749029433284,-430.0,0.00019894,2]
[364175402,1749029433294,-430.0,0.00019894,2]
[364175403,1749029433305,-430.0,0.00019894,2]
[364175404,1749029433315,-440.0,0.00019894,2]
[364175405,1749029433326,-582.59195497,0.00019894,2]
[364175406,1749029433336,-440.0,0.00019894,2]
[364175407,1749029433346,-435.19012237,0.00019894,2]
[364175408,1749029433357,-430.0,0.00019894,2]
[364175409,1749029433367,-437.76449362,0.00019894,2]
[364175410,1749029433377,-415.82551686,0.00019894,2]
[364175411,1749029433387,-440.0,0.00019894,2]
[364175412,1749029433399,-430.0,0.00019894,2]
[364175413,1749029433409,-430.0,0.00019894,2]
[364175414,1749029433419,-440.0,0.00019894,2]
[364175415,1749029433429,-440.0,0.00019894,2]
[364175416,1749029433442,-440.0,0.00019894,2]
[364175417,1749029433452,-440.0,0.00019894,2]
[364175418,1749029433463,-334.37116385,0.00019894,2]
[364175419,1749029433473,-440.0,0.00019894,2]
[364175420,1749029433485,-440.0,0.00019894,2]
[364175421,1749029433495,-370.0,0.00019894,2]
[364175422,1749029433506,-411.46199855,0.00019894,2]
[364175423,1749029433516,-429.24794447,0.00019894,2]
[364175424,1749029433526,-430.0,0.00019894,2]
[364175425,1749029433537,-440.0,0.00019894,2]
[364175426,1749029433548,-404.29426956,0.00019894,2]
[364175427,1749029433558,-430.0,0.00019894,2]
[364175428,1749029433568,-442.87053863,0.00019894,2]
[364175429,1749029433578,-352.34221752,0.00019894,2]
[364175430,1749029433588,-440.0,0.00019894,2]
[364175431,1749029433598,-440.0,0.00019894,2]
[364175432,1749029433609,-430.0,0.00019894,2]
[364175433,1749029433619,-440.0,0.00019894,2]
[364175434,1749029433629,-434.95793077,0.00019894,2]
[364175435,1749029433639,-440.0,0.00019894,2]
[364175436,1749029433650,-547.34600542,0.00019894,2]
[364175437,1749029433661,-353.48171854,0.00019894,2]
[364175438,1749029433671,-440.0,0.00019894,2]
[364175439,1749029433682,-521.16,0.00019894,2]
[364175440,1749029433692,-440.0,0.00019894,2]
[364175441,1749029433702,-440.0,0.00019894,2]
[364175442,1749029433713,-440.0,0.00019894,2]
[364175443,1749029433723,-440.0,0.00019894,2]
[364175444,1749029433734,-450.0,0.00019894,2]
[364175445,1749029433744,-446.33880489,0.00019894,2]
[364175446,1749029433754,-406.11247713,0.00019894,2]
[364175447,1749029433769,-440.0,0.00019894,2]
[364175448,1749029433780,-371.69531471,0.00019894,2]
[364175449,1749029433791,-400.0,0.00019894,2]
[364175450,1749029433801,-400.0,0.00019894,2]
[364175451,1749029433812,-351.45483872,0.00019894,2]
[364175452,1749029433823,-430.0,0.00019894,2]
[364175453,1749029433834,-440.0,0.00019894,2]
[364175454,1749029433844,-400.0,0.00019894,2]
[364175455,1749029433854,-400.0,0.00019894,2]
[364175456,1749029433867,-469.10966085,0.00019894,2]
[364175457,1749029433877,-511.56464283,0.00019894,2]
[364175458,1749029433888,-440.0,0.00019894,2]
[364175459,1749029433898,-440.0,0.00019894,2]
[364175460,1749029433909,-440.0,0.00019894,2]
[364175461,1749029433919,-430.0,0.00019894,2]
[364175462,1749029433930,-440.0,0.00019894,2]
[364175463,1749029433940,-440.0,0.00019894,2]
[364175464,1749029433950,-400.0,0.00019894,2]
[364175465,1749029433960,-420.0,0.00019894,2]
[364175466,1749029433970,-440.0,0.00019894,2]
[364175467,1749029433980,-440.0,0.00019894,2]
[364175468,1749029433990,-440.0,0.00019894,2]
[364175469,1749029434000,-370.0,0.00019894,2]
[364175470,1749029434011,-430.0,0.00019894,2]
[364175471,1749029434020,-440.0,0.00019894,2]
[364175472,1749029434030,-440.0,0.00019894,2]
[364175473,1749029434040,-440.0,0.00019894,2]
[364175474,1749029434050,-535.5081024,0.00019894,2]
[364175475,1749029434060,-440.0,0.00019894,2]
[364175476,1749029434070,-440.0,0.00019894,2]
[364175477,1749029434080,-440.0,0.00019894,2]
[364175478,1749029434090,-440.0,0.00019894,2]
[364175479,1749029434100,-420.0,0.00019894,2]
[364175480,1749029434110,-548.78723948,0.00019894,2]
[364175481,1749029434120,-440.0,0.00019894,2]
[364175482,1749029434130,-440.0,0.00019894,2]
[364175483,1749029434140,-332.62915406,0.00019894,2]
[364175484,1749029434149,-404.864,0.00019894,2]
[364175485,1749029434164,-440.0,0.00019894,2]
[364175486,1749029434175,-440.0,0.00019894,2]
[364175487,1749029434185,-446.23149667,0.00019894,2]
[364175488,1749029434195,-440.0,0.00019894,2]
[364175489,1749029434204,-440.0,0.00019894,2]
[364175490,1749029434216,-367.97243611,0.00019894,2]
[364175491,1749029434226,-440.0,0.00019894,2]
[364175492,1749029434235,-440.0,0.00019894,2]
[364175493,1749029434245,-430.0,0.00019894,2]
[364175494,1749029434256,-440.0,0.00019894,2]
[364175495,1749029434265,-440.0,0.00019894,2]
[364175496,1749029434275,-440.0,0.00019894,2]
[364175497,1749029434285,-440.0,0.00019894,2]
[364175498,1749029434295,-405.51872258,0.00019894,2]
[364175499,1749029434306,-452.87921709,0.00019894,2]
[364175500,1749029434316,-431.6365481,0.00019894,2]
[364175501,1749029434326,-430.0,0.00019894,2]
[364175502,1749029434335,-440.0,0.00019894,2]
[364175503,1749029434345,-440.0,0.00019894,2]
[364175504,1749029434355,-440.0,0.00019894,2]
[364175505,1749029434367,-440.0,0.00019894,2]
[364175506,1749029434377,-440.0,0.00019894,2]
[364175507,1749029434386,-440.0,0.00019894,2]
[364175508,1749029434396,-430.0,0.00019894,2]
[364175509,1749029434407,-440.0,0.00019894,2]
[364175510,1749029434417,-440.0,0.00019894,2]
[364175511,1749029434427,-440.0,0.00019894,2]
[364175512,1749029434437,-440.0,0.00019894,2]
[364175513,1749029434450,-3918.95,0.00019894,2]
[364175514,1749029434460,-440.0,0.00019894,2]
[364175515,1749029434470,-440.0,0.00019894,2]
[364175516,1749029434480,-416.90058159,0.00019894,2]
[364175517,1749029434491,-440.0,0.00019894,2]
[364175518,1749029434501,-440.0,0.00019894,2]
[364175519,1749029434511,-440.0,0.00019894,2]
[364175520,1749029434523,-440.0,0.00019894,2]
[364175521,1749029434532,-411.73862251,0.00019894,2]
[364175522,1749029434543,-440.0,0.00019894,2]
[364175523,1749029434695,-440.0,0.00019894,2]
[364175524,1749029434705,-440.0,0.00019894,2]
[364175525,1749029434715,-440.0,0.00019894,2]
[364175526,1749029434724,-440.0,0.00019894,2]